bitfinex-derivatives/quotes_BTCF0:USTF0_20210109
["timestamp","ask_amount","ask_price","bid_price","bid_amount"]
[1610209234430,0.11793,40326.0,40310.0,0.13632608]
[1610209234631,2.8184,40319.0,40310.0,0.13652625]
[1610209234832,2.8184,40319.0,40311.0,0.00020017]
[1610209235332,2.8184,40319.0,40303.0,0.00020017]
[1610209236032,2.8184,40319.0,40304.0,0.13632608]
[1610209236433,2.8184,40319.0,40305.0,0.00020017]
[1610209237034,2.8184,40319.0,40303.0,0.00020017]
[1610209237234,2.8184,40319.0,40306.0,0.00020018]
[1610209237634,2.8184,40319.0,40304.0,0.00020018]
[1610209237835,2.8184,40319.0,40307.0,0.00020018]
[1610209238034,2.8184,40319.0,40305.0,0.00020018]
[1610209238234,0.13632608,40306.0,40305.0,0.00020018]
[1610209238433,0.70512608,40306.0,40302.0,3.7026]
[1610209238633,0.13632608,40306.0,40305.0,0.00020019]
[1610209238834,3.15272608,40306.0,40303.0,0.00020019]
[1610209239034,0.13632608,40306.0,40303.0,0.00020019]
[1610209239235,0.13632608,40306.0,40305.0,0.00020019]
[1610209239437,3.69312608,40306.0,40304.0,0.00020019]
[1610209239636,3.69312608,40306.0,40305.0,0.00020022]
[1610209239836,3.69312608,40306.0,40290.0,0.11237]
[1610209240236,3.69312608,40306.0,40291.0,0.00020023]
[1610209240436,0.09718,40316.0,40291.0,0.00020023]
[1610209240637,3.6905,40292.0,40291.0,0.00020023]
[1610209241037,3.6905,40292.0,40290.0,0.11237]
[1610209241437,3.3783,40291.0,40290.0,0.11237]
[1610209241637,3.3783,40291.0,40270.0,3.8518]
[1610209242039,3.3783,40291.0,40271.0,0.00020028]
[1610209242437,3.3783,40291.0,40279.0,0.13632608]
[1610209242840,3.3783,40291.0,40280.0,0.00020028]
[1610209243238,3.3783,40291.0,40280.0,0.09768028]
[1610209243439,3.3783,40291.0,40281.0,0.00020028]
[1610209244341,0.13632608,40282.0,40281.0,0.00020028]
[1610209246142,0.62302608,40282.0,40281.0,0.00020028]
[1610209246341,0.13632608,40282.0,40281.0,0.00020028]
[1610209247844,0.13632608,40282.0,40280.0,0.00020031]
[1610209250249,0.13632608,40282.0,40279.0,0.13632608]
[1610209251051,2.9495,40281.0,40279.0,0.13632608]
[1610209251453,2.9495,40281.0,40267.0,3.5066]
[1610209251854,2.9495,40281.0,40268.0,0.00020033]
[1610209252455,2.9495,40281.0,40272.0,0.13632608]
[1610209252855,2.9495,40281.0,40273.0,0.00020033]
[1610209254356,0.13632608,40274.0,40272.0,0.13632608]
[1610209254557,0.13632608,40274.0,40267.0,3.5066]
[1610209255658,0.13632608,40274.0,40260.0,0.10269]
[1610209256061,3.4308,40273.0,40261.0,0.00020035]
[1610209256460,3.4308,40273.0,40265.0,0.13632608]
[1610209256860,3.4308,40273.0,40260.0,0.10269]
[1610209257260,3.4308,40273.0,40251.0,2.8975]
[1610209257661,3.4308,40273.0,40252.0,0.00020039]
[1610209257861,3.4308,40273.0,40252.0,0.08593039]
[1610209258260,3.4308,40273.0,40253.0,0.00020039]
[1610209258460,0.08276,40285.0,40256.0,0.13632608]
[1610209258661,3.8514,40263.0,40256.0,0.13632608]
[1610209258863,3.8514,40263.0,40253.0,0.00020039]
[1610209259062,0.07306,40274.0,40252.0,0.08573]
[1610209259262,3.9223,40253.0,40252.0,0.08573]
[1610209259462,3.9223,40253.0,40243.0,0.11383]
[1610209260261,3.9223,40253.0,40240.0,0.1]
[1610209260466,0.13632608,40241.0,40240.0,0.1]
[1610209275479,0.16697233,40241.0,40240.0,0.1]
[1610209276477,5.79297233,40241.0,40240.0,0.1]
[1610209276678,0.16697233,40241.0,40240.0,0.1]
[1610209279078,0.16697233,40241.0,40240.0,0.08]
[1610209280485,0.16697233,40241.0,40240.0,0.0784834]
[1610209280678,0.19697233,40241.0,40240.0,0.0784834]
[1610209281078,0.19697233,40241.0,40240.0,0.0584834]
[1610209284683,0.59937344,40241.0,40240.0,0.0584834]
[1610209284882,0.56872719,40241.0,40240.0,0.0584834]
[1610209287686,0.45962719,40241.0,40240.0,0.0584834]
[1610209287888,0.38482719,40241.0,40240.0,0.0584834]
[1610209288087,0.07306,40274.0,40240.0,0.0584834]
[1610209288288,0.02548,40260.0,40240.0,0.0584834]
[1610209288488,0.04694,40266.0,40259.0,0.13632608]
[1610209288690,1.0,40291.0,40260.0,0.0748]
[1610209288887,0.1556,40301.0,40261.0,0.0742]
[1610209289090,0.03062401,40290.0,40261.0,0.0742]
[1610209289287,0.09015,40290.0,40261.0,0.0742]
[1610209289488,0.05955,40290.0,40263.0,0.5259]
[1610209289688,0.05307221,40290.0,40263.0,0.5259]
[1610209289888,0.13477221,40301.0,40263.0,0.5259]
[1610209290087,0.13477221,40301.0,40261.0,0.15268]
[1610209290088,0.13477221,40301.0,40273.0,2.8394]
[1610209290288,0.13477221,40301.0,40274.0,0.0754]
[1610209290289,0.09757221,40301.0,40274.0,0.0754]
[1610209290489,0.03061447,40300.0,40286.0,0.13632608]
[1610209291588,0.07767532,40301.0,40287.0,0.0737]
[1610209291988,0.03060866,40300.0,40287.0,0.0737]
[1610209292189,0.03060866,40300.0,40288.0,0.4249]
[1610209292589,0.13632608,40289.0,40288.0,0.4249]
[1610209292989,0.07649,40297.0,40288.0,0.4249]
[1610209293191,0.01077,40311.0,40287.0,0.17445]
[1610209293388,0.60198,40329.0,40296.0,4.0356]
[1610209293590,0.00302825,40350.0,40296.0,4.15274]
[1610209293788,0.00030286,40328.0,40296.0,0.11714]
[1610209293993,0.00030286,40328.0,40312.0,3.4749]
[1610209293994,0.08723,40328.0,40312.0,3.4749]
[1610209294191,0.08723,40328.0,40296.0,0.11714]
[1610209294403,0.08723,40328.0,40314.0,2.9495]
[1610209294593,0.06153,40328.0,40327.0,0.13632608]
[1610209294795,3e-05,40328.0,40327.0,0.13632608]
[1610209295194,0.08185,40339.0,40327.0,0.13632608]
[1610209295195,0.05598,40339.0,40327.0,0.13632608]
[1610209295392,0.13632608,40342.0,40327.0,0.13632608]
[1610209295592,0.07162608,40342.0,40327.0,0.13632608]
[1610209295792,0.00030273,40341.0,40327.0,0.13632608]
[1610209295993,0.03892608,40342.0,40327.0,0.13632608]
[1610209296492,0.03892608,40342.0,40341.0,0.13632608]
[1610209297092,0.00030272,40342.0,40341.0,0.13632608]
[1610209297293,0.07278608,40349.0,40341.0,0.13632608]
[1610209298495,0.13632608,40342.0,40341.0,0.13632608]
[1610209298694,0.07278608,40349.0,40341.0,0.13632608]
[1610209298894,0.07278608,40349.0,40339.0,1.0]
[1610209299795,0.07278608,40349.0,40323.0,0.08054]
[1610209300395,0.07278608,40349.0,40314.0,0.08058]
[1610209300596,0.07278608,40349.0,40318.0,0.13632608]
[1610209300597,0.02,40339.0,40318.0,0.13632608]
[1610209300796,0.13529,40339.0,40318.0,0.13632608]
[1610209302500,0.13632608,40319.0,40287.0,0.10075]
[1610209302901,0.24870608,40319.0,40281.0,3.8288]
[1610209304604,0.13632608,40309.0,40302.0,0.13632608]
[1610209305204,0.11238,40319.0,40302.0,0.13632608]
[1610209305802,0.11238,40319.0,40318.0,6.0]
[1610209306402,0.08171,40330.0,40318.0,6.0]
[1610209306604,0.13529,40339.0,40329.0,0.13632608]
[1610209307905,0.13529,40339.0,40318.0,0.0927]
[1610209308506,0.13632608,40327.0,40324.0,0.13632608]
[1610209309106,0.24111608,40327.0,40324.0,0.13632608]
[1610209309306,0.24111608,40327.0,40314.0,2.9496]
[1610209309908,0.24111608,40327.0,40326.0,1.0]
[1610209311212,0.10479,40327.0,40326.0,1.0]
[1610209312011,0.10479,40327.0,40319.0,3.9797]
[1610209312513,0.10479,40327.0,40326.0,0.13632608]
[1610209313918,0.10479,40327.0,40326.0,1.13632608]
[1610209314314,0.13529,40339.0,40326.0,1.0]
[1610209314514,0.13632608,40328.0,40326.0,1.0]
[1610209314717,0.21104608,40328.0,40326.0,1.0]
[1610209315315,0.07472,40328.0,40326.0,1.0]
[1610209315815,0.13529,40339.0,40318.0,0.13632608]
[1610209316218,0.03057792,40338.0,40318.0,0.13632608]
[1610209316616,0.13632608,40319.0,40318.0,0.13632608]
[1610209316817,0.03057792,40338.0,40318.0,0.13632608]
[1610209317016,0.13529,40339.0,40318.0,0.13632608]
[1610209317220,0.0305778,40337.0,40318.0,0.13632608]
[1610209317617,0.03057748,40338.0,40318.0,0.13632608]
[1610209317818,0.030577,40336.0,40331.0,1.0]
[1610209318018,0.03057812,40337.0,40331.0,1.0]
[1610209318419,0.03057818,40335.0,40331.0,1.0]
[1610209318619,0.13632608,40332.0,40331.0,1.0]
[1610209321421,0.13632608,40332.0,40331.0,0.84861225]
[1610209321622,0.16690641,40332.0,40331.0,0.84861225]
[1610209321822,0.16690641,40332.0,40308.0,3.8012]
[1610209322425,0.03058508,40331.0,40308.0,3.8012]
[1610209322623,0.13632608,40318.0,40317.0,0.13632608]
[1610209322824,0.22325608,40318.0,40317.0,0.13632608]
[1610209324224,0.22325608,40318.0,40244.0,2.49023432]
[1610209324424,0.22325608,40318.0,40280.0,3.0958]
[1610209324624,0.08693,40318.0,40308.0,0.13632608]
[1610209325031,0.08693,40318.0,40289.0,0.09117]
[1610209326027,0.08693,40318.0,40290.0,0.5489]
[1610209326629,0.13632608,40317.0,40310.0,0.13632608]
[1610209327027,0.13632608,40317.0,40290.0,0.5489]
[1610209328027,0.13632608,40317.0,40289.0,0.09117]
[1610209328226,4.0014,40310.0,40280.0,0.10338]
[1610209328427,4.0014,40310.0,40264.0,3.895]
[1610209328628,0.09119448,40309.0,40285.0,0.13632608]
[1610209328827,0.20341448,40309.0,40285.0,0.13632608]
[1610209329231,0.03060267,40308.0,40285.0,0.13632608]
[1610209330630,0.13632608,40286.0,40285.0,0.13632608]
[1610209330832,0.13632608,40286.0,40245.0,0.2913]
[1610209331032,0.13632608,40286.0,40236.0,3.6316]
[1610209331233,0.12632608,40286.0,40236.0,3.6316]
[1610209332632,0.13632608,40270.0,40259.0,0.13632608]
[1610209333232,0.12632608,40270.0,40259.0,0.13632608]
[1610209334633,0.12632608,40270.0,40269.0,0.13632608]
[1610209335034,0.11632608,40270.0,40269.0,0.13632608]
[1610209335236,0.11632608,40270.0,40251.0,0.07375]
[1610209336335,0.0885,40278.0,40251.0,0.07375]
[1610209336737,0.0885,40278.0,40277.0,0.13632608]
[1610209337838,0.08933,40288.0,40277.0,0.13632608]
[1610209338038,0.2802,40307.0,40277.0,0.13632608]
[1610209338437,0.00030305,40306.0,40277.0,0.13632608]
[1610209338638,0.13632608,40278.0,40270.0,0.13632608]
[1610209340640,0.13632608,40271.0,40258.0,0.13632608]
[1610209340839,0.13632608,40271.0,40251.0,0.07375]
[1610209341040,0.13632608,40271.0,40248.0,3.9525]
[1610209341240,0.22544608,40271.0,40218.0,2.51497049]
[1610209341441,3.2009,40270.0,40218.0,2.51497049]
[1610209342042,3.2009,40270.0,40211.0,3.6162]
[1610209342641,0.13632608,40244.0,40233.0,0.13632608]
[1610209347142,0.13632608,40244.0,40211.0,3.6162]
[1610209347344,0.13632608,40244.0,40200.0,2.52879973]
[1610209348147,0.13632608,40244.0,40202.0,2.5286841]
[1610209348550,0.13632608,40244.0,40201.0,2.52864146]
[1610209348752,0.13632608,40244.0,40235.0,0.13632608]
[1610209349148,0.1003,40252.0,40235.0,0.13632608]
[1610209349348,0.10316,40261.0,40235.0,0.13632608]
[1610209349550,0.08912,40271.0,40235.0,0.13632608]
[1610209349747,0.2911,40279.0,40235.0,0.13632608]
[1610209350147,0.2911,40279.0,40239.0,4.19126]
[1610209350551,3.022,40297.0,40239.0,4.19126]
[1610209350748,0.13632608,40273.0,40269.0,0.13632608]
[1610209350949,0.21010608,40273.0,40269.0,0.13632608]
[1610209355054,0.21010608,40273.0,40239.0,0.08336]
[1610209355254,0.21010608,40273.0,40246.0,3.9138]
[1610209356655,0.13632608,40261.0,40260.0,0.13632608]
[1610209359058,0.07378,40273.0,40260.0,0.13632608]
[1610209359259,3.0943,40281.0,40260.0,0.13632608]
[1610209360761,3.0943,40281.0,40266.0,0.13632608]
[1610209361861,3.0943,40281.0,40254.0,0.09395]
[1610209362062,3.20585,40281.0,40254.0,0.09395]
[1610209362661,0.13632608,40255.0,40254.0,0.09395]
[1610209363061,0.13632608,40255.0,40239.0,0.08336]
[1610209363461,0.13632608,40255.0,40241.0,0.00021411]
[1610209363860,0.13632608,40255.0,40239.0,0.08336]
[1610209364861,0.13632608,40241.0,40239.0,0.08336]
[1610209365062,0.13632608,40241.0,40231.0,0.13632608]
[1610209366962,0.12632608,40241.0,40231.0,0.13632608]
[1610209367263,0.10071,40252.0,40231.0,0.13632608]
[1610209368665,0.10071,40252.0,40241.0,0.0193]
[1610209368866,0.10071,40252.0,40251.0,0.13632608]
[1610209369066,0.13632608,40257.0,40251.0,0.13632608]
[1610209369465,0.13632608,40257.0,40244.0,0.11628]
[1610209370066,0.13632608,40257.0,40241.0,0.0193]
[1610209370266,2.8701,40247.0,40241.0,0.0193]
[1610209370867,0.13632608,40242.0,40241.0,0.0193]
[1610209373169,2.95012608,40242.0,40241.0,0.0193]
[1610209374272,0.13632608,40242.0,40241.0,0.0193]
[1610209378670,0.66392608,40242.0,40241.0,0.0193]
[1610209384577,0.13632608,40242.0,40241.0,0.0193]
[1610209385979,0.70562608,40242.0,40241.0,0.0193]
[1610209389986,0.13632608,40242.0,40241.0,0.0193]
[1610209391986,0.13632608,40242.0,40241.0,0.01951423]
[1610209392988,0.13632608,40242.0,40241.0,0.0193]
[1610209394391,0.68942608,40242.0,40241.0,0.0193]
[1610209395590,0.85653478,40242.0,40241.0,0.0193]
[1610209397596,2.35653478,40242.0,40241.0,0.0193]
[1610209397994,2.35683836,40242.0,40241.0,0.0193]
[1610209398796,3.27166436,40242.0,40241.0,0.0193]
[1610209399196,2.77268096,40242.0,40173.0,0.13632608]
[1610209399598,0.3003,40241.0,40173.0,0.13632608]
[1610209399799,1.5,40240.0,40194.0,0.0002145]
[1610209399999,1.50030367,40240.0,40174.0,0.0002145]
[1610209400199,0.00030367,40239.0,40173.0,0.13632608]
[1610209400600,0.10824367,40239.0,40175.0,0.0002145]
[1610209400803,0.13632608,40187.0,40186.0,0.13632608]
[1610209402201,0.13632608,40187.0,40175.0,0.08216]
[1610209402603,0.13632608,40187.0,40176.0,0.00021687]
[1610209402812,2.8875,40197.0,40182.0,0.13632608]
[1610209403203,2.8875,40197.0,40183.0,0.00021687]
[1610209404506,2.8875,40197.0,40182.0,0.13632608]
[1610209404706,0.08886,40217.0,40182.0,0.13632608]
[1610209404906,0.08886,40217.0,40190.0,0.13632608]
[1610209405307,0.08886,40217.0,40190.0,0.25368608]
[1610209406308,3.3626,40228.0,40190.0,0.25368608]
[1610209406708,3.3626,40228.0,40191.0,0.00022293]
[1610209406909,3.3626,40228.0,40203.0,0.13632608]
[1610209407111,0.1671087,40242.0,40203.0,0.13632608]
[1610209407308,3.4578,40239.0,40203.0,0.13632608]
[1610209407912,3.4578,40239.0,40200.0,0.07403]
[1610209408110,3.55858,40239.0,40200.0,0.07403]
[1610209408510,0.10078,40239.0,40200.0,0.07403]
[1610209408711,3.8563,40219.0,40200.0,0.07403]
[1610209408910,0.13632608,40201.0,40200.0,0.07403]
[1610209413115,0.13632608,40201.0,40190.0,0.11736]
[1610209413318,0.13632608,40201.0,40181.0,3.9604]
[1610209414116,0.13632608,40201.0,40182.0,0.000223]
[1610209414917,0.13632608,40184.0,40183.0,0.13632608]
[1610209415318,0.13632608,40184.0,40183.0,0.13654906]
[1610209416718,0.13632608,40184.0,40183.0,0.00022298]
[1610209417319,0.13632608,40184.0,40182.0,0.00022301]
[1610209417519,0.13632608,40184.0,40175.0,0.08216]
[1610209417920,0.13632608,40184.0,40170.0,0.13632608]
[1610209418120,0.13632608,40184.0,40176.0,0.00022302]
[1610209418321,0.13632608,40184.0,40176.0,0.10496]
[1610209418528,0.13632608,40184.0,40177.0,0.00022302]
[1610209418923,0.13632608,40178.0,40177.0,0.00022302]
[1610209420227,3.2844,40205.0,40176.0,0.00518302]
[1610209420425,0.10642,40219.0,40176.0,4.10308302]
[1610209420626,3.7473,40230.0,40176.0,4.10308302]
[1610209421028,3.7473,40230.0,40185.0,0.13632608]
[1610209421425,3.7473,40230.0,40186.0,0.00022298]
[1610209421825,0.00030364,40229.0,40186.0,0.00022298]
[1610209422025,0.10006364,40229.0,40190.0,2.9479]
[1610209422225,0.09976,40229.0,40190.0,2.9479]
[1610209422625,0.09976,40229.0,40191.0,0.00022296]
[1610209422826,0.00030362,40228.0,40191.0,0.01181519]
[1610209423026,0.09976,40229.0,40192.0,0.13632608]
[1610209423428,0.09976,40229.0,40193.0,0.01181477]
[1610209425029,0.09976,40229.0,40212.0,0.13632608]
[1610209425429,0.09976,40229.0,40213.0,0.00022292]
[1610209426632,0.09976,40229.0,40200.0,0.01181095]
[1610209426831,0.09976,40229.0,40214.0,0.0002229]
[1610209427033,0.13632608,40215.0,40214.0,0.0002229]
[1610209428337,0.13632608,40215.0,40208.0,0.0002229]
[1610209429038,0.13632608,40209.0,40208.0,0.0002229]
[1610209430338,0.13632608,40209.0,40200.0,0.01181194]
[1610209430538,0.13632608,40209.0,40208.0,0.00022292]
[1610209430738,0.13632608,40209.0,40201.0,0.00022295]
[1610209431138,0.13632608,40202.0,40200.0,0.01181197]
[1610209431341,0.13632608,40202.0,40192.0,0.01159193]
[1610209431539,0.13632608,40202.0,40201.0,0.0118146]
[1610209431942,0.13632608,40202.0,40190.0,0.01181528]
[1610209432140,0.13632608,40202.0,40201.0,0.01181491]
[1610209432342,0.13632608,40202.0,40191.0,0.01181509]
[1610209432642,0.13632608,40202.0,40201.0,0.01181534]
[1610209432844,0.13632608,40202.0,40201.0,0.00022295]
[1610209433044,0.13632608,40202.0,40192.0,0.01181581]
[1610209433244,0.13632608,40202.0,40201.0,0.00022297]
[1610209433445,0.13632608,40202.0,40193.0,0.01181518]
[1610209433749,0.13632608,40202.0,40201.0,0.00022297]
[1610209433948,0.13632608,40202.0,40194.0,0.0118152]
[1610209434347,0.13632608,40202.0,40201.0,0.00022297]
[1610209434548,0.13632608,40202.0,40195.0,0.01181456]
[1610209434748,0.13632608,40202.0,40201.0,0.00022295]
[1610209435149,0.13632608,40202.0,40197.0,0.11141]
[1610209435353,0.13632608,40202.0,40201.0,0.00022295]
[1610209435550,0.13632608,40202.0,40198.0,0.01181462]
[1610209435952,0.13632608,40202.0,40201.0,0.00022295]
[1610209436154,0.13632608,40202.0,40199.0,0.00022295]
[1610209436352,0.13632608,40202.0,40201.0,0.00022296]
[1610209436653,0.13632608,40202.0,40200.0,0.00022296]
[1610209436852,0.13632608,40202.0,40201.0,0.000223]
[1610209437251,0.13632608,40202.0,40198.0,0.01181467]
[1610209437452,0.13632608,40202.0,40201.0,0.000223]
[1610209437651,0.13632608,40202.0,40199.0,0.000223]
[1610209438054,0.13632608,40202.0,40198.0,0.01181467]
[1610209438255,0.13632608,40202.0,40200.0,0.000223]
[1610209438456,0.13632608,40202.0,40199.0,0.000223]
[1610209438857,0.13632608,40202.0,40186.0,0.01181799]
[1610209439057,0.10635,40220.0,40200.0,0.000223]
[1610209439260,0.10635,40220.0,40187.0,0.000223]
[1610209439457,0.09772,40220.0,40187.0,0.000223]
[1610209439656,0.09772,40220.0,40186.0,0.01181799]
[1610209439857,0.09772,40220.0,40188.0,0.00022302]
[1610209440057,0.09772,40220.0,40187.0,0.00022302]
[1610209440356,0.09772,40220.0,40186.0,0.01181799]
[1610209440760,0.09772,40220.0,40188.0,0.000223]
[1610209440960,0.09772,40220.0,40187.0,0.000223]
[1610209441162,0.13632608,40188.0,40186.0,0.01159499]
[1610209441762,0.13632608,40188.0,40186.0,0.011818]
[1610209446163,0.13632608,40188.0,40186.0,0.01159499]
[1610209446365,0.13632608,40188.0,40187.0,0.00022301]
[1610209446563,0.13632608,40188.0,40186.0,0.011818]
[1610209446763,0.13632608,40188.0,40187.0,0.00022301]
[1610209447364,0.13632608,40188.0,40186.0,0.011818]
[1610209447564,0.13632608,40188.0,40187.0,0.00022301]
[1610209448164,0.13632608,40188.0,40186.0,0.01181802]
[1610209448366,0.13632608,40188.0,40187.0,0.00022303]
[1610209448964,0.13632608,40188.0,40186.0,0.01181802]
[1610209449165,0.13632608,40188.0,40187.0,0.00022303]
[1610209449665,0.13632608,40188.0,40186.0,0.01181802]
[1610209450064,0.13632608,40188.0,40187.0,0.00022303]
[1610209450465,0.13632608,40188.0,40186.0,0.01181802]
[1610209450864,0.13632608,40188.0,40187.0,0.000223]
[1610209451265,0.13632608,40188.0,40187.0,0.13632608]
[1610209451666,0.13632608,40188.0,40187.0,0.13654906]
[1610209451866,0.13632608,40188.0,40187.0,0.14814145]
[1610209452266,0.13632608,40188.0,40187.0,0.01181537]
[1610209452567,0.13632608,40188.0,40186.0,0.01181646]
[1610209455269,0.13632608,40188.0,40187.0,0.13632608]
[1610209455669,0.13632608,40188.0,40186.0,0.01181646]
[1610209455870,0.13632608,40188.0,40185.0,0.08716]
[1610209455871,0.13632608,40188.0,40187.0,0.01181584]
[1610209456470,0.13632608,40188.0,40186.0,0.01181677]
[1610209456671,0.13632608,40188.0,40187.0,0.01181783]
[1610209457174,0.13632608,40188.0,40186.0,0.01181749]
[1610209457372,0.13632608,40188.0,40187.0,0.01181757]
[1610209457773,0.13632608,40188.0,40186.0,0.01181747]
[1610209457974,0.13632608,40188.0,40187.0,0.01181753]
[1610209458577,0.13632608,40188.0,40187.0,3.4679]
[1610209458775,0.13632608,40188.0,40187.0,3.47971668]
[1610209458976,0.13632608,40188.0,40187.0,3.51034028]
[1610209459176,0.13632608,40188.0,40187.0,3.64666636]
[1610209459877,0.09772,40220.0,40187.0,3.64666636]
[1610209460078,3.7397,40227.0,40187.0,3.64666636]
[1610209460277,3.7397,40227.0,40188.0,0.04221096]
[1610209460476,3.7397,40227.0,40188.0,0.04243393]
[1610209461377,3.7397,40227.0,40207.0,0.13632608]
[1610209461980,3.7397,40227.0,40208.0,0.01016805]
[1610209463280,0.13632608,40209.0,40208.0,0.01016805]
[1610209463880,0.13632608,40209.0,40204.0,0.01016882]
[1610209464080,0.13632608,40209.0,40208.0,0.01016882]
[1610209464479,0.13632608,40209.0,40204.0,0.01016884]
[1610209464684,0.13632608,40209.0,40208.0,0.01016868]
[1610209464883,0.13632608,40209.0,40208.0,0.00021861]
[1610209465082,0.13632608,40209.0,40205.0,0.01016888]
[1610209465282,0.13632608,40209.0,40208.0,0.00021861]
[1610209465482,0.13632608,40209.0,40206.0,0.01016915]
[1610209465683,0.13632608,40209.0,40208.0,0.00021861]
[1610209466083,0.13632608,40209.0,40188.0,0.03061918]
[1610209466084,0.13632608,40209.0,40204.0,0.01016896]
[1610209466283,0.13632608,40209.0,40208.0,0.00021861]
[1610209466483,0.13632608,40209.0,40206.0,0.00995108]
[1610209466484,3.84492608,40209.0,40205.0,0.01016949]
[1610209466884,3.84492608,40209.0,40180.0,3.0771]
[1610209466885,3.84492608,40209.0,40186.0,0.01012247]
[1610209467083,3.84492608,40209.0,40206.0,0.00021841]
[1610209467286,3.84492608,40209.0,40187.0,0.01012199]
[1610209467685,3.84492608,40209.0,40186.0,0.01012218]
[1610209467884,3.84492608,40209.0,40188.0,0.01012146]
[1610209468086,3.84492608,40209.0,40188.0,0.00990307]
[1610209468284,3.84492608,40209.0,40187.0,0.01012148]
[1610209468484,3.84492608,40209.0,40189.0,0.01012148]
[1610209468686,3.84492608,40209.0,40188.0,0.01012167]
[1610209468885,0.13632608,40209.0,40190.0,0.01012178]
[1610209469284,0.0868,40216.0,40193.0,0.13632608]
[1610209469685,0.0868,40216.0,40194.0,0.0101214]
[1610209470787,0.1556,40228.0,40194.0,0.0101214]
[1610209471289,0.13632608,40205.0,40201.0,0.13632608]
[1610209471890,0.13632608,40205.0,40202.0,0.01012036]
[1610209473693,0.09739,40216.0,40202.0,0.01012036]
[1610209475099,0.15214076,40209.0,40202.0,0.01012036]
[1610209475298,0.13632608,40204.0,40202.0,0.01012036]
[1610209477299,0.15214076,40209.0,40202.0,0.01012036]
[1610209479304,0.15214076,40209.0,40208.0,0.13632608]
[1610209479904,0.15214076,40209.0,40208.0,0.14644414]
[1610209480308,0.15214076,40209.0,40208.0,0.01011806]
[1610209480906,0.15214076,40209.0,40197.0,0.01012017]
[1610209481105,0.15214076,40209.0,40208.0,0.01011946]
[1610209481506,0.15214076,40209.0,40205.0,0.13632608]
[1610209481708,0.15214076,40209.0,40208.0,0.01011877]
[1610209481907,0.15214076,40209.0,40206.0,0.0101183]
[1610209485414,0.13632608,40207.0,40206.0,0.0101183]
[1610209485913,0.13632608,40207.0,40197.0,0.01011856]
[1610209486115,0.13632608,40207.0,40206.0,0.01011946]
[1610209486615,0.13632608,40207.0,40198.0,0.01011953]
[1610209486814,0.13632608,40207.0,40206.0,0.01011906]
[1610209487013,0.13632608,40207.0,40199.0,0.01011927]
[1610209487213,0.13632608,40207.0,40206.0,0.01011924]
[1610209487615,0.13632608,40207.0,40201.0,0.13632608]
[1610209487815,0.13632608,40207.0,40206.0,0.01011969]
[1610209488017,0.13632608,40207.0,40202.0,0.01011992]
[1610209488414,0.13632608,40207.0,40206.0,0.01011971]
[1610209488615,0.13632608,40207.0,40203.0,0.01011971]
[1610209488816,0.13632608,40207.0,40206.0,0.01011945]
[1610209489217,0.13632608,40207.0,40204.0,0.01012093]
[1610209489418,0.13632608,40207.0,40206.0,0.0101208]
[1610209489618,0.13632608,40207.0,40205.0,0.01012213]
[1610209490020,0.13632608,40207.0,40206.0,0.01012173]
[1610209490521,0.13632608,40207.0,40197.0,0.01012152]
[1610209490718,0.13632608,40207.0,40206.0,0.01012168]
[1610209490919,0.13632608,40207.0,40198.0,0.01012107]
[1610209491321,0.13632608,40207.0,40206.0,0.13632608]
[1610209491719,0.13632608,40207.0,40206.0,0.14644729]
[1610209491921,0.15214076,40209.0,40206.0,0.14644729]
[1610209492320,0.15214076,40209.0,40207.0,0.01011927]
[1610209493422,0.13632608,40208.0,40207.0,0.01011927]
[1610209497831,0.13632608,40208.0,40202.0,0.01012021]
[1610209498231,0.13632608,40208.0,40197.0,0.01012035]
[1610209498429,0.13632608,40208.0,40203.0,0.01012078]
[1610209498631,0.13632608,40208.0,40198.0,0.0101204]
[1610209499029,0.13632608,40208.0,40197.0,0.01011984]
[1610209499230,0.13632608,40208.0,40199.0,0.01012016]
[1610209499431,0.13632608,40200.0,40198.0,0.01012049]
[1610209499730,0.13632608,40200.0,40191.0,0.01012091]
[1610209499931,0.13632608,40200.0,40199.0,0.00021838]
[1610209500130,0.13632608,40200.0,40199.0,0.01012116]
[1610209500330,0.13632608,40200.0,40191.0,0.01012195]
[1610209500532,0.13632608,40200.0,40199.0,0.01012166]
[1610209500833,0.13632608,40200.0,40192.0,0.01012112]
[1610209501032,0.13632608,40200.0,40199.0,0.01012044]
[1610209501432,0.13632608,40200.0,40199.0,0.13632608]
[1610209501632,0.13632608,40200.0,40199.0,0.14644628]
[1610209502232,0.15214076,40209.0,40199.0,0.14644628]
[1610209502634,0.15214076,40209.0,40200.0,0.01011933]
[1610209503435,0.13632608,40205.0,40204.0,0.13632608]
[1610209504036,0.13632608,40205.0,40204.0,0.14644537]
[1610209504436,0.15214076,40209.0,40204.0,0.14644537]
[1610209504838,0.15214076,40209.0,40205.0,0.01011803]
[1610209505337,0.28846684,40209.0,40205.0,0.01011803]
[1610209506139,0.15214076,40209.0,40205.0,0.01011803]
[1610209511148,0.15214076,40209.0,40195.0,0.01011901]
[1610209511348,0.15214076,40209.0,40206.0,0.01011854]
[1610209511548,0.15214076,40209.0,40208.0,0.13632608]
[1610209511948,0.15214076,40209.0,40208.0,0.14644446]
[1610209513454,0.28846684,40209.0,40208.0,0.14644446]
[1610209518658,0.28846684,40209.0,40208.0,0.01011838]
[1610209519256,0.28846684,40209.0,40195.0,0.01011794]
[1610209519456,0.15214076,40209.0,40208.0,0.01011818]
[1610209519655,0.15214076,40209.0,40196.0,0.14644426]
[1610209520058,0.15214076,40209.0,40208.0,0.01011808]
[1610209520260,0.15214076,40209.0,40196.0,0.13632608]
[1610209520261,0.15214076,40209.0,40197.0,0.01011812]
[1610209520457,0.15214076,40209.0,40208.0,0.01011812]
[1610209520859,0.15214076,40209.0,40198.0,0.0101181]
[1610209521060,0.15214076,40209.0,40208.0,0.01011824]
[1610209521260,0.15214076,40209.0,40199.0,0.01011834]
[1610209521458,0.15214076,40209.0,40205.0,0.13632608]
[1610209521658,0.15214076,40209.0,40208.0,0.01011798]
[1610209521858,0.15214076,40209.0,40206.0,0.01011781]
[1610209522058,0.15214076,40209.0,40208.0,0.01011779]
[1610209522457,0.15214076,40209.0,40207.0,0.01011789]
[1610209522658,0.15214076,40209.0,40208.0,0.01011786]
[1610209523158,0.15214076,40209.0,40206.0,0.01011783]
[1610209523359,0.15214076,40209.0,40208.0,0.01011792]
[1610209523559,0.28846684,40209.0,40208.0,0.01011792]
[1610209523761,0.28846684,40209.0,40206.0,0.0101179]
[1610209523959,0.28846684,40209.0,40208.0,0.01011787]
[1610209524161,0.28846684,40209.0,40207.0,0.01011789]
[1610209524559,0.28846684,40209.0,40206.0,0.01011806]